Workbook

Sheet 3 Business
B2: SAMLET LØSNING
B3: FRA 3BUSINESS
B5: Alle beløb i DKK, ex. moms.
B6: Der tages forbehold for tastefejl og/eller prisændringer.
B8: Aftaleperiode: | C8: 36 | D8: måneder
B9: Firmanavn
B10: Adresse
B11: Postnr By
B13: LØBENDE UDGIFTER
B15: ABONNEMENTER | D15: Stk. | E15: Bruttopris | F15: Rabat | G15: Nettopris | H15: Sum pr. måned | I15: Sum pr. år | J15: Total sum
B17: Mobiltelefoni
B18: Vælg abonnement | D18: 0 | E18: =IFERROR(VLOOKUP('3 Business'!B18,ABONNEMENTER!A:B,2,FALSE),"") -> 0 | F18: 0 | G18: =IFERROR(E18*(1-F18),"") -> 0 | H18: =IFERROR(D18*G18,"") -> 0 | I18: =IFERROR(H18*12,"") -> 0 | J18: =IFERROR((I18*$C$8)/12,"") -> 0
B19: Vælg abonnement | D19: 0 | E19: =IFERROR(VLOOKUP('3 Business'!B19,ABONNEMENTER!A:B,2,FALSE),"") -> 0 | F19: 0 | G19: 0 | H19: 0 | I19: 0 | J19: 0
B20: Vælg abonnement | D20: 0 | E20: =IFERROR(VLOOKUP('3 Business'!B20,ABONNEMENTER!A:B,2,FALSE),"") -> 0 | F20: 0 | G20: 0 | H20: 0 | I20: 0 | J20: 0
B21: Vælg abonnement | D21: 0 | E21: =IFERROR(VLOOKUP('3 Business'!B21,ABONNEMENTER!A:B,2,FALSE),"") -> 0 | F21: 0 | G21: 0 | H21: 0 | I21: 0 | J21: 0
B22: Vælg abonnement | D22: 0 | E22: =IFERROR(VLOOKUP('3 Business'!B22,ABONNEMENTER!A:B,2,FALSE),"") -> 0 | F22: 0 | G22: 0 | H22: 0 | I22: 0 | J22: 0
B23: Vælg abonnement | D23: 0 | E23: =IFERROR(VLOOKUP('3 Business'!B23,ABONNEMENTER!A:B,2,FALSE),"") -> 0 | F23: 0 | G23: 0 | H23: 0 | I23: 0 | J23: 0
B24: Vælg abonnement | D24: 0 | E24: =IFERROR(VLOOKUP('3 Business'!B24,ABONNEMENTER!A:B,2,FALSE),"") -> 0 | F24: 0 | G24: 0 | H24: 0 | I24: 0 | J24: 0
B25: Vælg abonnement | D25: 0 | E25: =IFERROR(VLOOKUP('3 Business'!B25,ABONNEMENTER!A:B,2,FALSE),"") -> 0 | F25: 0 | G25: 0 | H25: 0 | I25: 0 | J25: 0
B26: Vælg abonnement | D26: 0 | E26: =IFERROR(VLOOKUP('3 Business'!B26,ABONNEMENTER!A:B,2,FALSE),"") -> 0 | F26: 0 | G26: 0 | H26: 0 | I26: 0 | J26: 0
B27: Vælg abonnement | D27: 0 | E27: =IFERROR(VLOOKUP('3 Business'!B27,ABONNEMENTER!A:B,2,FALSE),"") -> 0 | F27: 0 | G27: 0 | H27: 0 | I27: 0 | J27: 0
B28: Vælg abonnement | D28: 0 | E28: =IFERROR(VLOOKUP('3 Business'!B28,ABONNEMENTER!A:B,2,FALSE),"") -> 0 | F28: 0 | G28: 0 | H28: 0 | I28: 0 | J28: 0
B29: Vælg abonnement | D29: 0 | E29: =IFERROR(VLOOKUP('3 Business'!B29,ABONNEMENTER!A:B,2,FALSE),"") -> 0 | F29: 0 | G29: 0 | H29: 0 | I29: 0 | J29: 0
B30: Vælg abonnement | D30: 0 | E30: =IFERROR(VLOOKUP('3 Business'!B30,ABONNEMENTER!A:B,2,FALSE),"") -> 0 | F30: 0 | G30: 0 | H30: 0 | I30: 0 | J30: 0
B31: Vælg abonnement | D31: 0 | E31: =IFERROR(VLOOKUP('3 Business'!B31,ABONNEMENTER!A:B,2,FALSE),"") -> 0 | F31: 0 | G31: 0 | H31: 0 | I31: 0 | J31: 0
B32: Vælg abonnement | D32: 0 | E32: =IFERROR(VLOOKUP('3 Business'!B32,ABONNEMENTER!A:B,2,FALSE),"") -> 0 | F32: 0 | G32: 0 | H32: 0 | I32: 0 | J32: 0
D33: =IFERROR(#REF!*(1-#REF!),"") ->  | E33: =IFERROR(#REF!*D33,"") ->  | F33: =IFERROR(E33*12,"") ->  | G33: =IFERROR((F33*$C$8)/12,"") -> 
B36: Bredbånd
B37: Vælg abonnement | D37: 0 | E37: =IFERROR(VLOOKUP('3 Business'!B37,ABONNEMENTER!A:B,2,FALSE),"") -> 0 | F37: 0 | G37: =IFERROR(E37*(1-F37),"") -> 0 | H37: =IFERROR(D37*G37,"") -> 0 | I37: =IFERROR(H37*12,"") -> 0 | J37: =IFERROR((I37*$C$8)/12,"") -> 0
B38: Vælg abonnement | D38: 0 | E38: =IFERROR(VLOOKUP('3 Business'!B38,ABONNEMENTER!A:B,2,FALSE),"") -> 0 | F38: 0 | G38: 0 | H38: 0 | I38: 0 | J38: 0
B39: Vælg abonnement | D39: 0 | E39: =IFERROR(VLOOKUP('3 Business'!B39,ABONNEMENTER!A:B,2,FALSE),"") -> 0 | F39: 0 | G39: =IFERROR(E39*(1-F39),"") -> 0 | H39: =IFERROR(D39*G39,"") -> 0 | I39: =IFERROR(H39*12,"") -> 0 | J39: 0
B40: Vælg abonnement | D40: 0 | E40: =IFERROR(VLOOKUP('3 Business'!B40,ABONNEMENTER!A:B,2,FALSE),"") -> 0 | F40: 0 | G40: =IFERROR(E40*(1-F40),"") -> 0 | H40: =IFERROR(D40*G40,"") -> 0 | I40: =IFERROR(H40*12,"") -> 0 | J40: =IFERROR((I40*$C$8)/12,"") -> 0
B41: Vælg abonnement | D41: 0 | E41: =IFERROR(VLOOKUP('3 Business'!B41,ABONNEMENTER!A:B,2,FALSE),"") -> 0 | F41: 0 | G41: 0 | H41: 0 | I41: 0 | J41: 0
B42: Vælg abonnement | D42: 0 | E42: =IFERROR(VLOOKUP('3 Business'!B42,ABONNEMENTER!A:B,2,FALSE),"") -> 0 | F42: 0 | G42: =IFERROR(E42*(1-F42),"") -> 0 | H42: =IFERROR(D42*G42,"") -> 0 | I42: =IFERROR(H42*12,"") -> 0 | J42: =IFERROR((I42*$C$8)/12,"") -> 0
B43: Vælg abonnement | D43: 0 | E43: =IFERROR(VLOOKUP('3 Business'!B43,ABONNEMENTER!A:B,2,FALSE),"") -> 0 | F43: 0 | G43: =IFERROR(E43*(1-F43),"") -> 0 | H43: =IFERROR(D43*G43,"") -> 0 | I43: =IFERROR(H43*12,"") -> 0 | J43: =IFERROR((I43*$C$8)/12,"") -> 0
B44: Vælg abonnement | D44: 0 | E44: =IFERROR(VLOOKUP('3 Business'!B44,ABONNEMENTER!A:B,2,FALSE),"") -> 0 | F44: 0 | G44: 0 | H44: 0 | I44: 0 | J44: 0
B45: Vælg abonnement | D45: 0 | E45: =IFERROR(VLOOKUP('3 Business'!B45,ABONNEMENTER!A:B,2,FALSE),"") -> 0 | F45: 0 | G45: 0 | H45: 0 | I45: 0 | J45: 0
B48: I alt | D48: =IFERROR(SUM(D18:D47),0) -> 0 | H48: =SUM(H18:H46) -> 0 | I48: =SUM(I18:I46) -> 0 | J48: =IFERROR((I48*$C$8)/12,"") -> 0
B51: TILLÆGSPAKKER | D51: Stk. | E51: Bruttopris | F51: Rabat | G51: Nettopris | H51: Sum pr. måned | I51: Sum pr. år | J51: Total sum
B53: Vælg tillægspakke | D53: 0 | E53: =IFERROR(VLOOKUP('3 Business'!B53,TILLÆGSPAKKER!A:B,2,FALSE),"") -> 0 | F53: 0 | G53: =IFERROR(E53*(1-F53),"") -> 0 | H53: =IFERROR(D53*G53,"") -> 0 | I53: =IFERROR(H53*12,"") -> 0 | J53: =IFERROR((I53*$C$8)/12,"") -> 0
B54: Vælg tillægspakke | D54: 0 | E54: =IFERROR(VLOOKUP('3 Business'!B54,TILLÆGSPAKKER!A:B,2,FALSE),"") -> 0 | F54: 0 | G54: 0 | H54: 0 | I54: 0 | J54: =IFERROR((I54*$C$8)/12,"") -> 0
B55: Vælg tillægspakke | D55: 0 | E55: =IFERROR(VLOOKUP('3 Business'!B55,TILLÆGSPAKKER!A:B,2,FALSE),"") -> 0 | F55: 0 | G55: 0 | H55: 0 | I55: 0 | J55: =IFERROR((I55*$C$8)/12,"") -> 0
B56: Vælg tillægspakke | D56: 0 | E56: =IFERROR(VLOOKUP('3 Business'!B56,TILLÆGSPAKKER!A:B,2,FALSE),"") -> 0 | F56: 0 | G56: 0 | H56: 0 | I56: 0 | J56: 0
B57: Vælg tillægspakke | D57: 0 | E57: =IFERROR(VLOOKUP('3 Business'!B57,TILLÆGSPAKKER!A:B,2,FALSE),"") -> 0 | F57: 0 | G57: 0 | H57: 0 | I57: 0 | J57: 0
B58: Vælg tillægspakke | D58: 0 | E58: =IFERROR(VLOOKUP('3 Business'!B58,TILLÆGSPAKKER!A:B,2,FALSE),"") -> 0 | F58: 0 | G58: 0 | H58: 0 | I58: 0 | J58: 0
B59: Vælg tillægspakke | D59: 0 | E59: =IFERROR(VLOOKUP('3 Business'!B59,TILLÆGSPAKKER!A:B,2,FALSE),"") -> 0 | F59: 0 | G59: =IFERROR(E59*(1-F59),"") -> 0 | H59: =IFERROR(D59*G59,"") -> 0 | I59: =IFERROR(H59*12,"") -> 0 | J59: =IFERROR((I59*$C$8)/12,"") -> 0
E60: =IFERROR(VLOOKUP('3 Business'!B60,TILLÆGSPAKKER!A:B,2,FALSE),"") ->  | G60: =IFERROR(E60*(1-F60),"") ->  | H60: =IFERROR(D60*G60,"") ->  | I60: =IFERROR(H60*12,"") ->  | J60: =IFERROR((I60*$C$8)/12,"") -> 
B61: I alt | D61: =IFERROR(SUM(D53:D60),0) -> 0 | H61: =SUM(H53:H60) -> 0 | I61: =SUM(I52:I60) -> 0 | J61: 0
B64: 3KONTAKT | D64: Stk. | E64: Bruttopris | F64: Rabat | G64: Nettopris | H64: Sum pr. måned | I64: Sum pr. år | J64: Total sum
B66: Vælg brugerlicens | D66: 0 | E66: =IFERROR(VLOOKUP('3 Business'!B66,'3KONTAKT'!A:B,2,FALSE),"") -> 0 | F66: 0 | G66: =IFERROR(E66*(1-F66),"") -> 0 | H66: =IFERROR(D66*G66,"") -> 0 | I66: =IFERROR(H66*12,"") -> 0 | J66: 0
B67: Serviceaftale (op til 50 medarbejdere) | D67: 0 | E67: =IFERROR(VLOOKUP('3 Business'!B67,'3KONTAKT'!A:B,2,FALSE),"") -> 100 | F67: 0 | G67: =IFERROR(E67*(1-F67),"") -> 100 | H67: =IFERROR(D67*G67,"") -> 0 | I67: =IFERROR(H67*12,"") -> 0 | J67: 0
B68: Serviceaftale (over 50 medarbejdere) | D68: 0 | E68: =IFERROR(VLOOKUP('3 Business'!B68,'3KONTAKT'!A:B,2,FALSE),"") -> 200 | F68: 0 | G68: =IFERROR(E68*(1-F68),"") -> 200 | H68: =IFERROR(D68*G68,"") -> 0 | I68: =IFERROR(H68*12,"") -> 0 | J68: 0
B69: Yderligere basissvargruppe-brugerlicens | D69: 0 | E69: =IFERROR(VLOOKUP('3 Business'!B69,'3KONTAKT'!A:B,2,FALSE),"") -> 19 | F69: 0 | G69: =IFERROR(E69*(1-F69),"") -> 19 | H69: =IFERROR(D69*G69,"") -> 0 | I69: =IFERROR(H69*12,"") -> 0 | J69: 0
B70: Avanceret svargruppe-brugerlicens | D70: 0 | E70: =IFERROR(VLOOKUP('3 Business'!B70,'3KONTAKT'!A:B,2,FALSE),"") -> 79 | F70: 0 | G70: 79 | H70: 0 | I70: 0 | J70: 0
B71: Receptionist-brugerlicens | D71: 0 | E71: =IFERROR(VLOOKUP('3 Business'!B71,'3KONTAKT'!A:B,2,FALSE),"") -> 199 | F71: 0 | G71: 199 | H71: 0 | I71: 0 | J71: 0
B72: Kalenderintegration-brugerlicens | D72: 0 | E72: =IFERROR(VLOOKUP('3 Business'!B72,'3KONTAKT'!A:B,2,FALSE),"") -> 9 | F72: 0 | G72: =IFERROR(E72*(1-F72),"") -> 9 | H72: =IFERROR(D72*G72,"") -> 0 | I72: =IFERROR(H72*12,"") -> 0 | J72: 0
B73: Ekstra konference-brugerlicenser | D73: 0 | E73: =IFERROR(VLOOKUP('3 Business'!B73,'3KONTAKT'!A:B,2,FALSE),"") -> 19 | F73: 0 | G73: =IFERROR(E73*(1-F73),"") -> 19 | H73: =IFERROR(D73*G73,"") -> 0 | I73: =IFERROR(H73*12,"") -> 0 | J73: 0
B74: Basisstatistik | D74: 0 | E74: =IFERROR(VLOOKUP('3 Business'!B74,'3KONTAKT'!A:B,2,FALSE),"") -> 199 | F74: 0 | G74: =IFERROR(E74*(1-F74),"") -> 199 | H74: =IFERROR(D74*G74,"") -> 0 | I74: =IFERROR(H74*12,"") -> 0 | J74: =IFERROR((I74*$C$8)/12,"") -> 0
B75: Udvidet statistik | D75: 0 | E75: =IFERROR(VLOOKUP('3 Business'!B75,'3KONTAKT'!A:B,2,FALSE),"") -> 399 | F75: 0 | G75: 399 | H75: 0 | I75: 0 | J75: 0
B76: Fastnetnummer (pr. nummer) | D76: 0 | E76: =IFERROR(VLOOKUP('3 Business'!B76,'3KONTAKT'!A:B,2,FALSE),"") -> 19 | F76: 0 | G76: 19 | H76: 0 | I76: 0 | J76: 0
B77: Direkte fastnetnummer (pr. nummer) | D77: 0 | E77: =IFERROR(VLOOKUP('3 Business'!B77,'3KONTAKT'!A:B,2,FALSE),"") -> 19 | F77: 0 | G77: =IFERROR(E77*(1-F77),"") -> 19 | H77: =IFERROR(D77*G77,"") -> 0 | I77: =IFERROR(H77*12,"") -> 0 | J77: 0
B78: Cloud Recording 30 dage | D78: 0 | E78: =IFERROR(VLOOKUP('3 Business'!B78,'3KONTAKT'!A:B,2,FALSE),"") -> 49 | F78: 0 | G78: =IFERROR(E78*(1-F78),"") -> 49 | H78: =IFERROR(D78*G78,"") -> 0 | I78: =IFERROR(H78*12,"") -> 0 | J78: =IFERROR((I78*$C$8)/12,"") -> 0
B79: Cloud Recording 90 dage | D79: 0 | E79: =IFERROR(VLOOKUP('3 Business'!B79,'3KONTAKT'!A:B,2,FALSE),"") -> 79 | F79: 0 | G79: =IFERROR(E79*(1-F79),"") -> 79 | H79: =IFERROR(D79*G79,"") -> 0 | I79: =IFERROR(H79*12,"") -> 0 | J79: 0
B80: Cloud Recording 7 år | D80: 0 | E80: =IFERROR(VLOOKUP('3 Business'!B80,'3KONTAKT'!A:B,2,FALSE),"") -> 199 | F80: 0 | G80: =IFERROR(E80*(1-F80),"") -> 199 | H80: =IFERROR(D80*G80,"") -> 0 | I80: =IFERROR(H80*12,"") -> 0 | J80: 0
B82: I alt | D82: =IFERROR(SUM(D66:D81),0) -> 0 | H82: =SUM(H66:H77) -> 0 | I82: =SUM(I66:I77) -> 0 | J82: =IFERROR((I82*$C$8)/12,0) -> 0
B85: TOTAL LØBENDE UDGIFTER | H85: =SUM(IFERROR(H48,0),IFERROR(H61,0),IFERROR(H82,0)) -> 0 | I85: =SUM(IFERROR(I48,0),IFERROR(I61,0),IFERROR(I82,0)) -> 0 | J85: =SUM(IFERROR(J48,0),IFERROR(J61,0),IFERROR(J82,0)) -> 0
B88: ENGANGSOMKOSTNINGER
B90: OPRETTELSER | D90: Stk. | E90: Bruttopris | F90: Rabat | G90: Nettopris | H90: Købs Sum | J90: Pris i alt
B92: Vælg produkt | D92: 0 | E92: =IFERROR(VLOOKUP('3 Business'!B92,OPRETTELSER!A:B,2,FALSE),"") -> 0 | F92: 0 | G92: =IFERROR(E92*(1-F92),"") -> 0 | H92: =IFERROR(D92*G92,"") -> 0 | J92: =IFERROR(H92,"") -> 0
B93: Vælg produkt | D93: 0 | E93: =IFERROR(VLOOKUP('3 Business'!B93,OPRETTELSER!A:B,2,FALSE),"") -> 0 | F93: 0 | G93: 0 | H93: 0 | J93: =IFERROR(H93,"") -> 0
B94: Vælg produkt | D94: 0 | E94: =IFERROR(VLOOKUP('3 Business'!B94,OPRETTELSER!A:B,2,FALSE),"") -> 0 | F94: 0 | G94: 0 | H94: 0 | J94: 0
B95: Vælg produkt | D95: 0 | E95: =IFERROR(VLOOKUP('3 Business'!B95,OPRETTELSER!A:B,2,FALSE),"") -> 0 | F95: 0 | G95: 0 | H95: 0 | J95: 0
B96: Vælg produkt | D96: 0 | E96: =IFERROR(VLOOKUP('3 Business'!B96,OPRETTELSER!A:B,2,FALSE),"") -> 0 | F96: 0 | G96: 0 | H96: 0 | J96: 0
B97: Vælg produkt | D97: 0 | E97: =IFERROR(VLOOKUP('3 Business'!B97,OPRETTELSER!A:B,2,FALSE),"") -> 0 | F97: 0 | G97: 0 | H97: 0 | J97: 0
B98: Vælg produkt | D98: 0 | E98: =IFERROR(VLOOKUP('3 Business'!B98,OPRETTELSER!A:B,2,FALSE),"") -> 0 | F98: 0 | G98: 0 | H98: 0 | J98: 0
B99: Vælg produkt | D99: 0 | E99: =IFERROR(VLOOKUP('3 Business'!B99,OPRETTELSER!A:B,2,FALSE),"") -> 0 | F99: 0 | G99: 0 | H99: 0 | J99: 0
B101: I alt | D101: =IFERROR(SUM(D92:D100),0) -> 0 | J101: =SUM(J92:J100) -> 0
B103: OPRETTELSESGEBYR | D103: Stk. | E103: Bruttopris | F103: Rabat | G103: Nettopris | H103: Købs Sum | J103: Pris i alt
B105: Oprettelsesgebyr | D105: 0 | E105: 79.2 | F105: 0 | G105: =IFERROR(E105*(1-F105),"") -> 79.2 | H105: =IFERROR(D105*G105,"") -> 0 | J105: =IFERROR(H105,"") -> 0
B107: I alt | D107: =IFERROR(SUM(D98:D106),0) -> 0 | J107: =J105 -> 0
B109: HARDWARE | D109: Stk. | E109: Bruttopris | F109: Rabat | G109: Nettopris | H109: Købs Sum | J109: Pris i alt
B111: Telefon 1 | D111: 0 | E111: =IFERROR(VLOOKUP('3 Business'!B111,HARDWARE!A:B,2,FALSE),"") -> 9999 | F111: 0 | G111: =IFERROR(E111*(1-F111),"") -> 9999 | H111: =IFERROR(D111*G111,"") -> 0 | J111: =H111 -> 0
B112: Telefon 2 | D112: 0 | E112: =IFERROR(VLOOKUP('3 Business'!B112,HARDWARE!A:B,2,FALSE),"") -> 999 | F112: 0 | G112: 999 | H112: 0 | J112: =H112 -> 0
B113: Telefon 3 | D113: 0 | E113: =IFERROR(VLOOKUP('3 Business'!B113,HARDWARE!A:B,2,FALSE),"") -> 99 | F113: 0 | G113: 99 | H113: 0 | J113: =H113 -> 0
B114: Telefon 1 | D114: 0 | E114: =IFERROR(VLOOKUP('3 Business'!B114,HARDWARE!A:B,2,FALSE),"") -> 9999 | F114: 0 | G114: 9999 | H114: 0 | J114: =H114 -> 0
B115: Telefon 2 | D115: 0 | E115: =IFERROR(VLOOKUP('3 Business'!B115,HARDWARE!A:B,2,FALSE),"") -> 999 | F115: 0 | G115: 999 | H115: 0 | J115: =H115 -> 0
B117: I alt | D117: =IFERROR(SUM(D111:D116),0) -> 0 | J117: =SUM(J111:J116) -> 0
B119: Afbetaling | C119: Antal måneder | D119: Stk. | E119: Bruttopris pr Måned | F119: Rabat | G119: Pr stk | H119: Total | J119: Pris i alt
B121: Telefon 1 | C121: 0 | D121: 0 | E121: =IFERROR(VLOOKUP('3 Business'!B121,HARDWARE!A:B,2,FALSE),"") -> 9999 | F121: 0 | G121: =IFERROR(C121*E121*(1-F121),"") -> 0 | H121: =IFERROR(D121*G121,"") -> 0 | J121: =IFERROR(H121,"") -> 0
B122: Telefon 3 | C122: 0 | D122: 0 | E122: =IFERROR(VLOOKUP('3 Business'!B122,HARDWARE!A:B,2,FALSE),"") -> 99 | F122: 0 | G122: =IFERROR(C122*E122*(1-F122),"") -> 0 | H122: =IFERROR(D122*G122,"") -> 0 | J122: 0
B123: Telefon 2 | C123: 0 | D123: 0 | E123: =IFERROR(VLOOKUP('3 Business'!B123,HARDWARE!A:B,2,FALSE),"") -> 999 | F123: 0 | G123: 0 | H123: 0 | J123: 0
B124: Telefon 2 | C124: 0 | D124: 0 | E124: =IFERROR(VLOOKUP('3 Business'!B124,HARDWARE!A:B,2,FALSE),"") -> 999 | F124: 0 | G124: 0 | H124: 0 | J124: 0
B125: Telefon 3 | C125: 0 | D125: 0 | E125: =IFERROR(VLOOKUP('3 Business'!B125,HARDWARE!A:B,2,FALSE),"") -> 99 | F125: 0 | G125: 0 | H125: 0 | J125: 0
B126: Telefon 3 | C126: 0 | D126: 0 | E126: =IFERROR(VLOOKUP('3 Business'!B126,HARDWARE!A:B,2,FALSE),"") -> 99 | F126: 0 | G126: 0 | H126: 0 | J126: 0
B127: Telefon 1 | C127: 0 | D127: 0 | E127: =IFERROR(VLOOKUP('3 Business'!B127,HARDWARE!A:B,2,FALSE),"") -> 9999 | F127: 0 | G127: 0 | H127: 0 | J127: 0
B128: Telefon 2 | C128: 0 | D128: 0 | E128: =IFERROR(VLOOKUP('3 Business'!B128,HARDWARE!A:B,2,FALSE),"") -> 999 | F128: 0 | G128: 0 | H128: 0 | J128: 0
B129: Telefon 2 | C129: 0 | D129: 0 | E129: =IFERROR(VLOOKUP('3 Business'!B129,HARDWARE!A:B,2,FALSE),"") -> 999 | F129: 0 | G129: 0 | H129: 0 | J129: 0
B132: I alt | D132: =IFERROR(SUM(D121:D131),0) -> 0 | J132: =IFERROR(SUM(J121:J129),0) -> 0
B134: TOTAL ENGANGSOMKOSTNING | H134: I alt | I134: =SUM(IFERROR(J101,0),IFERROR(J107,0),IFERROR(J117,0)) -> 0
B136: Hardware pulje | D136: Stk. | E136: Tilskud pr Sim | J136: Total Tilskud
B138: Hardware pulje | D138: 0 | E138: 2500 | J138: =IFERROR(D138*E138,J146) -> 0
B141: TOTAL HARDWARE PULJE | H141: I alt | I141: =J138 -> 0
J142: =SUM(J137:J141) -> 0
B149: stop

Sheet 3 Business done (hidden)
B2: SAMLET LØSNING
B3: FRA 3BUSINESS
B5: Alle beløb i DKK, ex. moms.
B6: Der tages forbehold for tastefejl og/eller prisændringer.
B8: Binding: | C8: 0 | D8: måneder
B10: Klik på et abonnement eller rabatpakke for at få en beskrivelse (kræver adgang til Internettet).
B12: LØBENDE UDGIFTER
B14: ABONNEMENTER | D14: Stk. | E14: Bruttopris | F14: Rabat | G14: Nettopris | H14: Sum pr. måned | I14: Sum pr. år
B16: Mobiltelefoni
B18: 3MobilPakke Ekstra (Frit forbrug)* | D18: 2 | E18: =IFERROR(VLOOKUP('3 Business done'!B18,ABONNEMENTER!A:B,2,FALSE),"") ->  | F18: 0 | G18: =IFERROR(E18*(1-F18),"") ->  | H18: =IFERROR(D18*G18,"") ->  | I18: =IFERROR(H18*12,"") -> 
B19: 3MobilPakke Ekstra (Frit forbrug)* | D19: 0 | E19: =IFERROR(VLOOKUP('3 Business done'!B19,ABONNEMENTER!A:B,2,FALSE),"") ->  | F19: 0 | G19: =IFERROR(E19*(1-F19),"") ->  | H19: =IFERROR(D19*G19,"") ->  | I19: =IFERROR(H19*12,"") -> 
B20: 3MobilPakke Ekstra (Frit forbrug)* | D20: 0 | E20: =IFERROR(VLOOKUP('3 Business done'!B20,ABONNEMENTER!A:B,2,FALSE),"") ->  | F20: 0
B21: 3MobilPakke Basis (Frit forbrug)** | D21: 1 | E21: =IFERROR(VLOOKUP('3 Business done'!B21,ABONNEMENTER!A:B,2,FALSE),"") ->  | F21: 0
B22: 3Business 499 | D22: 2 | E22: =IFERROR(VLOOKUP('3 Business done'!B22,ABONNEMENTER!A:B,2,FALSE),"") ->  | F22: 0 | G22: =IFERROR(E22*(1-F22),"") ->  | H22: =IFERROR(D22*G22,"") ->  | I22: =IFERROR(H22*12,"") -> 
B24: Mobilt bredbånd
B25: Mobiltbredbånd 50 GB | D25: 2 | E25: =IFERROR(VLOOKUP('3 Business done'!B25,ABONNEMENTER!A:B,2,FALSE),"") ->  | F25: 0
B26: Mobiltbredbånd 1 GB | D26: 2 | E26: =IFERROR(VLOOKUP('3 Business done'!B26,ABONNEMENTER!A:B,2,FALSE),"") ->  | F26: 0 | G26: =IFERROR(E26*(1-F26),"") ->  | H26: =IFERROR(D26*G26,"") -> 
B28: I alt | H28: =SUM(H18:H25) -> 0 | I28: =SUM(I18:I25) -> 0
B31: RABATPAKKER | D31: Stk. | E31: Bruttopris | F31: Rabat | G31: Nettopris | H31: Sum pr. måned | I31: Sum pr. år
B33: 3Global | D33: 2 | E33: =IFERROR(VLOOKUP('3 Business done'!B33,TILLÆGSPAKKER!A:B,2,FALSE),"") -> 55.2 | F33: 0 | G33: =IFERROR(E33*(1-F33),"") -> 55.2 | H33: =IFERROR(D33*G33,"") -> 110.4 | I33: =IFERROR(H33*12,"") -> 1324.8
B34: 3Global | D34: 2 | E34: =IFERROR(VLOOKUP('3 Business done'!B34,TILLÆGSPAKKER!A:B,2,FALSE),"") -> 55.2 | F34: 0 | G34: =IFERROR(E34*(1-F34),"") -> 55.2 | H34: =IFERROR(D34*G34,"") -> 110.4 | I34: =IFERROR(H34*12,"") -> 1324.8
B35: 3Global | D35: 2 | E35: =IFERROR(VLOOKUP('3 Business done'!B35,TILLÆGSPAKKER!A:B,2,FALSE),"") -> 55.2 | F35: 0 | G35: =IFERROR(E35*(1-F35),"") -> 55.2 | H35: =IFERROR(D35*G35,"") -> 110.4 | I35: =IFERROR(H35*12,"") -> 1324.8
B36: I alt | H36: =SUM(#REF!) ->  | I36: =SUM(I32:I35) -> 3974.4
B39: 3OMSTILLING | D39: Stk. | E39: Bruttopris | F39: Rabat | G39: Nettopris | H39: Sum pr. måned | I39: Sum pr. år
B41: Månedlig afgift (Kun 3Omstilling Pro) | D41: 2 | E41: =IFERROR(VLOOKUP('3 Business done'!B41,'3KONTAKT'!A:B,2,FALSE),"") ->  | F41: 0 | G41: =IFERROR(E41*(1-F41),"") ->  | H41: =IFERROR(D41*G41,"") ->  | I41: =IFERROR(H41*12,"") -> 
B42: Tre receptionistpladser (Kun 3Omstilling Pro) | D42: 2 | E42: =IFERROR(VLOOKUP('3 Business done'!B42,'3KONTAKT'!A:B,2,FALSE),"") ->  | F42: 0 | G42: =IFERROR(E42*(1-F42),"") ->  | H42: =IFERROR(D42*G42,"") ->  | I42: =IFERROR(H42*12,"") -> 
B43: Månedlig afgift (Kun 3Omstilling Pro) | D43: 2 | E43: =IFERROR(VLOOKUP('3 Business done'!B43,'3KONTAKT'!A:B,2,FALSE),"") ->  | F43: 0 | G43: =IFERROR(E43*(1-F43),"") ->  | H43: =IFERROR(D43*G43,"") ->  | I43: =IFERROR(H43*12,"") -> 
B45: I alt | H45: =SUM(H41:H43) -> 0 | I45: =SUM(I41:I43) -> 0
B48: TOTAL LØBENDE UDGIFTER | H48: =SUM(H28,H36,H45) ->  | I48: =SUM(I28,I36,I45) -> 3974.4
B51: ENGANGSOMKOSTNINGER
B53: OPRETTELSER | D53: Stk. | E53: Bruttopris | F53: Rabat | G53: Nettopris | I53: Pris i alt
B55: 3Omstilling Pro | D55: 2 | E55: =IFERROR(VLOOKUP('3 Business done'!B55,OPRETTELSER!A:B,2,FALSE),"") ->  | F55: 0 | G55: =IFERROR(E55*(1-F55),"") ->  | H55: =IFERROR(D55*G55,"") ->  | I55: =IFERROR(H55*12,"") -> 
B56: 3Omstilling Pro | D56: 2 | E56: =IFERROR(VLOOKUP('3 Business done'!B56,OPRETTELSER!A:B,2,FALSE),"") ->  | F56: 0 | G56: =IFERROR(E56*(1-F56),"") ->  | H56: =IFERROR(D56*G56,"") ->  | I56: =IFERROR(H56*12,"") -> 
B57: 3Omstilling Pro | D57: 2 | E57: =IFERROR(VLOOKUP('3 Business done'!B57,OPRETTELSER!A:B,2,FALSE),"") ->  | F57: 0 | G57: =IFERROR(E57*(1-F57),"") ->  | H57: =IFERROR(D57*G57,"") ->  | I57: =IFERROR(H57*12,"") -> 
B59: I alt | I59: =SUM(I56:I57) -> 0
B61: HARDWARE | D61: Stk. | E61: Bruttopris | F61: Rabat | G61: Nettopris | I61: Pris i alt
B63: Telefon 2 | D63: 2 | E63: =IFERROR(VLOOKUP('3 Business done'!B63,HARDWARE!A:B,2,FALSE),"") -> 999 | F63: 0 | G63: =IFERROR(E63*(1-F63),"") -> 999 | H63: =IFERROR(D63*G63,"") -> 1998 | I63: =IFERROR(H63*12,"") -> 23976
B64: Telefon 2 | D64: 2 | E64: =IFERROR(VLOOKUP('3 Business done'!B64,HARDWARE!A:B,2,FALSE),"") -> 999 | F64: 0 | G64: =IFERROR(E64*(1-F64),"") -> 999 | H64: =IFERROR(D64*G64,"") -> 1998 | I64: =IFERROR(H64*12,"") -> 23976
B66: I alt | I66: =SUM(I59:I62) -> 0
B68: TOTAL ENGANGSOMKOSTNING | H68: =SUM(H59,H66) -> 0 | I68: =I59+I66 -> 0
B73: Det med småt
B74: *Med mobilpakke Ekstra får du et abonnement med helt frit forbrug, 3Omstilling Mini uden beregning, et USB stick uden beregning og en router til 499 kr.
B75: , begge til at dele dataen fra abonnementet, således at du har mobiltbredbånd, helt uden beregning.
B76: **Med mobilpakke Basis får du et abonnement med helt frit forbrug, 3Omstilling Mini uden beregning og et USB stick uden beregning til at dele dataen fra abonnementet, således at du har mobiltbredbånd, helt uden beregning.
B77: ***Samme betingelser som 3Business 499, dog med 5 GB mindre pr. måned og uden telefon med til.

Sheet EX Hårdvara (hidden)
A2: Helhetslösning från 3.
A3: Exklusive Hårdvara
A6: Rörlig Kostnad
A7: Abonnemang | C7: st | D7: pris | E7: Summa månad | F7: Summa år
A8: 3Affärspaket Max | C8: 0 | D8: 599 | E8: =C8*D8 -> 0 | F8: =E8*12 -> 0 | I8: http://tre.se/Foretag/Abonnemang1/Abonnemang/
A9: 3Affärspaket Plus | C9: 0 | D9: 229 | E9: =C9*D9 -> 0 | F9: =E9*12 -> 0
A10: 3Business Extra | C10: 0 | D10: 339 | E10: =C10*D10 -> 0 | F10: =E10*12 -> 0
A11: 3Business Plus | C11: 0 | D11: 79 | E11: 0 | F11: 0
A12: 3Business Start | C12: 0 | D12: 39 | E12: 0 | F12: 0
A13: Växeln Max
A14: 3Växel Max Användare | C14: 0 | D14: 89 | E14: 0 | F14: 0
A15: 3Växelnummer | C15: 0 | D15: 99 | E15: 0 | F15: 0 | I15: http://tre.se/Foretag/Mobila-vaxlar/Max/
A16: 3Telefonistplats 3st | C16: 0 | D16: 299 | E16: 0 | F16: 0
A17: 3Outlook Synk | C17: 0 | D17: 19 | E17: =C17*D17 -> 0 | F17: =E17*12 -> 0
E18: =SUM(E8:E17) -> 0 | F18: =SUM(F8:F17) -> 0
A19: Växel Start
A20: 3Växel Start Användare (Fast växelnummer inkluderat) | D20: 69 | E20: =C20*D20 -> 0 | F20: =E20*12 -> 0
A22: Tillägtjänster rörliga
A23: 3Minutpott (200 min) | C23: 0 | D23: 99 | E23: =C23*D23 -> 0 | F23: =E23*12 -> 0
A24: 3Minutpott (500 min) | C24: 0 | D24: 159 | E24: =C24*D24 -> 0 | F24: =E24*12 -> 0 | I24: http://tre.se/Foretag/Tjanster1/Tjanster/
A25: 3Minutpott (1000 min) | C25: 0 | D25: 249 | E25: =C25*D25 -> 0 | F25: =E25*12 -> 0
A26: 3Mobilsurf Bas (0,384 Mbit/s) 0,5 GB | C26: 0 | D26: 49 | E26: 0 | F26: 0
A27: 3Mobilsurf Plus (6Mbit/s) 2 GB | C27: 0 | D27: 89 | E27: =C27*D27 -> 0 | F27: =E27*12 -> 0
A28: 3Mobilsurf Max(10 Mbit/s) 5 GB | C28: 0 | D28: 149 | E28: =C28*D28 -> 0 | F28: =E28*12 -> 0
A29: 3Data 50. MB | C29: 0 | D29: 29 | E29: 0 | F29: 0
A30: Minutpott 200 min | C30: 0 | D30: 99 | E30: 0 | F30: 0
A31: Minutpott 500 min | C31: 0 | D31: 159 | E31: 0 | F31: 0
A32: Minutpott 1000 min | C32: 0 | D32: 249 | E32: 0 | F32: 0
A33: 3Global | C33: 0 | D33: 29 | E33: 0 | F33: 0
A34: 3Norden | C34: 0 | D34: 19.2 | E34: 0 | F34: 0
A35: 3Samtal Europa | C35: 0 | D35: 39.2 | E35: =C35*D35 -> 0 | F35: =E35*12 -> 0
A36: 3Data Europa | C36: 0 | D36: 29 | E36: =C36*D36 -> 0 | F36: =E36*12 -> 0
A37: Total Summa Rörliga Kostnader | E37: =SUM(E18:E36) -> 0 | F37: =SUM(F18:F36) -> 0
A40: Fast Kostnad/Engångskostnad
A41: Abonnemang Aktivering | C41: st | D41: pris | E41: Summa
A42: 3Business Plus, Extra | C42: 0 | D42: 200 | E42: =C42*D42 -> 0
A43: 3Affärspaket Max & Plus | C43: 0 | D43: 400 | E43: 0
A44: Växel Max | C44: 0 | D44: 3000 | E44: 0
A45: Växel Start | C45: 0 | D45: 995 | E45: 0
A46: Växel utbildning | C46: 0 | D46: 5000 | E46: 0
A47: Växel utbildning Telefonist | C47: 0 | D47: 3000 | E47: 0
E48: =SUM(E42:E47) -> 0

Sheet Telenor (hidden)
A1: Alle beløb i DKK eksl. Moms
A2: Abonnementer | C2: Stk. | D2: Bruttopris | E2: Rabat | F2: Nettopris | G2: Sum pr. måned | H2: Sum pr. År
A4: Mobildeal ekstra (fri tale) | C4: 4 | D4: 399 | E4: 0 | F4: =D4*(1-E4) -> 399 | G4: =C4*F4 -> 1596 | H4: =$G4*12 -> 19152
A5: Mobildeal 99 (2 timer) | C5: 4 | D5: 99 | E5: 0 | F5: =D5*(1-E5) -> 99 | G5: =C5*F5 -> 396 | H5: =$G5*12 -> 4752
A6: Mobilt bredbånd 239 (16/1,4 MB) | C6: 1 | D6: 239 | E6: 0 | F6: =D6*(1-E6) -> 239 | G6: =C6*F6 -> 239 | H6: =$G6*12 -> 2868
A7: 20 MB mobil bredbånd | C7: 1 | D7: 249 | E7: 0 | F7: =D7*(1-E7) -> 249 | G7: =C7*F7 -> 249 | H7: =$G7*12 -> 2988
A8: Travel | C8: 2 | D8: 49 | E8: 0 | F8: 49 | G8: 98 | H8: 1176
A10: Switch Mini
A12: Fastnet nummer | C12: 1 | D12: 99 | E12: 0 | F12: =D12*(1-E12) -> 99 | G12: =C12*F12 -> 99 | H12: =$G12*12 -> 1188
A13: Brugerafgift | C13: 1 | D13: 699 | E13: 0 | F13: =D13*(1-E13) -> 699 | G13: =C13*F13 -> 699 | H13: =$G13*12 -> 8388
A14: Total | D14: =SUMPRODUCT(D4:D13,$C$4:$C$13) -> 3376 | G14: =SUM(G4:G13) -> 3376 | H14: =SUM(H4:H13) -> 40512
A17: Engangsomkostninger
C18: Stk. | D18: Bruttopris | E18: Rabat | F18: Nettopris | G18: Sum
D19: 0 | E19: 0 | F19: =D19*(1-E19) -> 0 | G19: =F19*C19 -> 0
A20: Samsung Galaxy S2 12mdr. | C20: 4 | D20: 1919 | E20: 0 | F20: 1919 | G20: =C20*F20 -> 7676
A21: Samsung 2710 | C21: 4 | D21: 119 | E21: 0 | F21: 119 | G21: 476
A22: Huawei B260a | C22: 1 | D22: 0 | E22: 0 | F22: 0 | G22: 0
A23: Total engangsomkostning | D23: =SUMPRODUCT(D19:D21,$C$19:$C$21) -> 8152 | G23: =SUMPRODUCT(F19:F21,$C$19:$C$21) -> 8152

Sheet TDC (hidden)
A2: Abonnementer | C2: Stk. | D2: Bruttopris | E2: Rabat | F2: Nettopris | G2: Sum pr. måned | H2: Sum pr. år
A4: 3Business499 | C4: 2 | D4: 499 | E4: 0 | F4: =D4*(1-E4) -> 499 | G4: =C4*F4 -> 998 | H4: =G4*12 -> 11976
A5: 3Business299 | C5: 3 | D5: 299 | E5: 0 | F5: =D5*(1-E5) -> 299 | G5: =C5*F5 -> 897 | H5: =G5*12 -> 10764
A6: 3Business199 | C6: 4 | D6: 199 | E6: 0 | F6: 199 | G6: =C6*F6 -> 796 | H6: =G6*12 -> 9552
A7: 3Business39 | C7: 4 | D7: 39 | E7: 0 | F7: =D7*(1-E7) -> 39 | G7: =C7*F7 -> 156 | H7: =G7*12 -> 1872
A8: HomeDuo | C8: 1 | D8: 299 | E8: 0.4 | F8: =D8*(1-E8) -> 179.4 | G8: =C8*F8 -> 179.4 | H8: =G8*12 -> 2152.8
A10: Scale Mobil
A12: Fastnet nummer | C12: 1 | E12: 0 | F12: =D12*(1-E12) -> 0 | G12: =C12*F12 -> 0 | H12: =G12*12 -> 0
A13: Brugerafgift | C13: 1 | D13: 980.84 | E13: 0 | F13: =D13*(1-E13) -> 980.84 | G13: =C13*F13 -> 980.84 | H13: =G13*12 -> 11770.08
A14: Total | D14: =SUMPRODUCT(D4:D13,$C$9:$C$18) -> 338 | G14: =SUM(G4:G13) -> 4007.24 | H14: =SUM(H4:H13) -> 48086.88
A17: Engangsomkostninger
C18: Stk. | D18: Bruttopris | E18: Rabat | F18: Nettopris | G18: Sum
A19: Scale Mobil | C19: 1 | D19: 2977 | E19: 0 | F19: =D19-E19 -> 2977 | G19: =F19*C19 -> 2977
C20: 2 | D20: 0 | E20: 0 | F20: =D20*(1-E20) -> 0 | G20: =C20*F20 -> 0
C21: 2 | D21: 0 | E21: 0 | F21: 0 | G21: 0
C22: 4 | D22: 0 | E22: 0 | F22: 0 | G22: 0
C23: 4 | D23: 0 | E23: 1 | F23: 0 | G23: 0
C24: 4 | D24: 0 | E24: 2 | F24: 0 | G24: 0
C25: 1 | D25: 0 | E25: 0 | F25: 0 | G25: 0
A26: Total engangsomkostning | D26: =SUMPRODUCT(D19:D25) -> 2977 | G26: =SUM(G19:G25) -> 2977

Sheet ABONNEMENTER
A1: ABONNEMENT | B1: Bruttopris
A2: Vælg abonnement | B2: 0
A3: 3PRO 5G Tale 5 GB | B3: 149
A4: 3PRO 5G Tale 5 GB m. hardware | B4: 349
A5: 3PRO 5G Tale 10 GB | B5: 169
A6: 3PRO 5G Tale 10 GB m. hardware | B6: 369
A7: 3PRO 5G Tale 200 GB | B7: 219
A8: 3PRO 5G Tale 200 GB m. hardware | B8: 419
A9: 3PRO 5G Tale Fri Data | B9: 399
A10: 3PRO 5G Tale Fri Data m. hardware | B10: 599
A11: 3Deling 5G Tale 0 GB | B11: 139
A12: 3Deling 5G Tale 0 GB m. hardware | B12: 339
A13: 3Deling 5G Tale 5 GB | B13: 159
A14: 3Deling 5G Tale 5 GB m. hardware | B14: 359
A15: 3Deling 5G Tale 10 GB | B15: 189
A16: 3Deling 5G Tale 10 GB m. hardware | B16: 389
A17: 3Deling 5G Tale 20 GB | B17: 239
A18: 3Deling 5G Tale 20 GB m. hardware | B18: 439
A19: 3Deling 5G Tale 30 GB | B19: 289
A20: 3Deling 5G Tale 30 GB m. hardware | B20: 489
A21: 3Deling 5G Tale 40 GB | B21: 339
A22: 3Deling 5G Tale 40 GB m. hardware | B22: 539
A23: 3PRO 5G Data 5 GB | B23: 49
A24: 3PRO 5G Data 5 GB m. hardware | B24: 249
A25: Bundle 3PRO 5G Data 5 GB | B25: 9
A26: Bundle 3PRO 5G Data 5 GB m. hardware | B26: 209
A27: 3PRO 5G Data 10 GB | B27: 129
A28: 3PRO 5G Data 10 GB m. hardware | B28: 329
A29: Bundle 3PRO 5G Data 10 GB | B29: 89
A30: Bundle 3PRO 5G Data 10 GB m. hardware | B30: 289
A31: 3PRO 5G Data 200 GB | B31: 179
A32: 3PRO 5G Data 200 GB m. hardware | B32: 379
A33: Bundle 3PRO 5G Data 200 GB | B33: 139
A34: Bundle 3PRO 5G Data 200 GB m. hardware | B34: 339
A35: 3Deling 5G Data 0 GB | B35: 79
A36: 3Deling 5G Data 0 GB m. hardware | B36: 279
A37: Bundle 3Deling 5G Data 0 GB | B37: 39
A38: Bundle 3Deling 5G Data 0 GB m. hardware | B38: 239
A39: 3Deling 5G Data 5 GB | B39: 99
A40: 3Deling 5G Data 5 GB m. hardware | B40: 299
A41: Bundle 3Deling 5G Data 5 GB | B41: 59
A42: Bundle 3Deling 5G Data 5 GB m. hardware | B42: 259
A43: 3Deling 5G Data 10 GB | B43: 129
A44: 3Deling 5G Data 10 GB m. hardware | B44: 329
A45: Bundle 3Deling 5G Data 10 GB | B45: 89
A46: Bundle 3Deling 5G Data 10 GB m. hardware | B46: 289
A47: 3Deling 5G Data 20 GB | B47: 179
A48: 3Deling 5G Data 20 GB m. hardware | B48: 379
A49: Bundle 3Deling 5G Data 20 GB m. hardware | B49: 339
A50: Bundle 3Deling 5G Data 20 GB | B50: 139
A51: 3Deling 5G Data 30 GB | B51: 229
A52: 3Deling 5G Data 30 GB m. hardware | B52: 429
A53: Bundle 3Deling 5G Data 30 GB | B53: 189
A54: Bundle 3Deling 5G Data 30 GB m. hardware | B54: 389
A55: 3Deling 5G Data 40 GB | B55: 279
A56: 3Deling 5G Data 40 GB m. hardware | B56: 479
A57: Bundle 3Deling 5G Data 40 GB | B57: 239
A58: Bundle 3Deling 5G Data 40 GB m. hardware | B58: 439
A59: 3Softphone Pro Fri Tale | B59: 100
A60: 3Softphone Pro | B60: 30
A61: 3Business DK Fri Tale 10 GB | B61: 119
A62: 3Business DK Fri Tale 20 GB | B62: 139
A63: 3Business DK Fri Tale 40 GB | B63: 169
A64: 3Business DK Bredbånd 10 GB | B64: 89
A65: 3Business DK Bredbånd 20 GB | B65: 109
A66: 3Business DK Bredbånd 40 GB | B66: 139
A67: 3Business DK Bredbånd 10 GB, bundle 49 ex moms | B67: 49
A68: 3Business Bredbånd (399kr) | B68: 399
A69: 3SAMLET Data 10 GB (100 kr.) | B69: 100
A70: 3SAMLET Data 50 GB (500 kr.) | B70: 500
A71: 3SAMLET Data 60 GB (600 kr.) | B71: 600
A72: 3SAMLET Data 70 GB (700 kr.) | B72: 700
A73: 3SAMLET Data 80 GB (800 kr.) | B73: 800
A74: 3SAMLET Data 90 GB (900 kr.) | B74: 900
A75: 3SAMLET Data 100 GB (1000 kr.) | B75: 1000
A76: 3SAMLET Data 200 GB (2.000 kr) | B76: 2000
A77: 3SAMLET Data 250 GB (2.500 kr) | B77: 2500
A78: 3SAMLET Data 300 GB (3.000 kr) | B78: 3000
A79: 3SAMLET Data 400 GB (4.000 kr) | B79: 4000
A80: 3SAMLET Data 500 GB (5000 kr.) | B80: 5000
A81: 3SAMLET Data 600 GB (6000 kr.) | B81: 6000
A82: 3SAMLET Data 750 GB (7.500 kr) | B82: 7500
A83: 3SAMLET Data 1.000 GB (10.000 kr.) | B83: 10000

Sheet TILLÆGSPAKKER
A1: TILLÆGSPAKKER | B1: Bruttopris
A2: Vælg tillægspakke | B2: 0
A3: 3Global | B3: 55.2
A4: Data EU Plus | B4: 23.2
A5: Rabatpakke 3/evt. Statisk IP eller andet | B5: 40
A6: Firmanummer | B6: 39.2
A7: 3Global travel | B7: 55.2
A8: Complete Service | B8: 10
A9: 3Global Home | B9: 23.2
A10: Deezer | B10: 63.2
A11: 3DataDeling Simkort | B11: 69
A12: 3Forsikring | B12: 89
A13: Spotify | B13: 79.2

Sheet 3KONTAKT
A1: 3Kontakt | B1: Bruttopris
A2: Vælg brugerlicens | B2: 0
A3: 3Kontakt Pro | B3: 69
A4: Serviceaftale (op til 50 medarbejdere) | B4: 100
A5: Serviceaftale (over 50 medarbejdere) | B5: 200
A6: 3Kontakt Skype U. Licens | B6: 119
A7: 3Kontakt Skype M. Licens | B7: 199
A8: Yderligere basissvargruppe-brugerlicens | B8: 19
A9: Avanceret svargruppe-brugerlicens | B9: 79
A10: Receptionist-brugerlicens | B10: 199
A11: Kalenderintegration-brugerlicens | B11: 9
A12: Ekstra konference-brugerlicenser | B12: 19
A13: Basisstatistik | B13: 199
A14: Udvidet statistik | B14: 399
A15: Fastnetnummer (pr. nummer) | B15: 19
A16: Direkte fastnetnummer (pr. nummer) | B16: 19
A17: Cloud Recording 30 dage | B17: 49
A18: Cloud Recording 90 dage | B18: 79
A19: Cloud Recording 7 år | B19: 199

Sheet OPRETTELSER
A1: OPRETTELSER | B1: Bruttopris
A2: Vælg produkt | B2: 0
A3: Avanceret svargruppe | B3: 299
A4: Receptionistsvargruppe | B4: 299
A5: Kalenderintegration opstart | B5: 1000
A6: Eksternt konferencenummer | B6: 299
A7: Onsite implementering (Op til 10 ansatte) | B7: 4000
A8: Telefonisk opsætning | B8: 1000
A9: Onsite teknikerbesøg (pr. time) | B9: 900
A10: Oprettelsesgebyr | B10: 79.2
A11: Onsite implementering (Over 10 ansatte) | B11: 15000
A12: Skpe for Business Implementering | B12: 20000

Sheet HARDWARE
A1: Hardware Type | B1: Bruttopris
A2: Telefon 1 | B2: 9999 | N2: =OFFSET(A2,0,0,COUNTA(A:A)-1) -> Telefon 1
A3: Telefon 2 | B3: 999 | K3: Telefon 1 | N3: =OFFSET(A2,0,0,COUNTA(A:A)-1) -> Telefon 2
A4: Telefon 3 | B4: 99
A5: Router* | B5: 9
A6: USB stick** | B6: 0.9
A7: Router* | B7: 0.009

Sheet Settings
C1: Overskrifter
C2: ABONNEMENTER
C3: Mobiltelefoni
C4: Bredbånd
C5: I alt
C6: TILLÆGSPAKKER | K6: =OFFSET(HARDWARE!A2,0,0,COUNTA(HARDWARE!A:A)) -> USB stick**
C7: I alt
C8: 3KONTAKT
C9: I alt
C10: OPRETTELSER
C11: I alt
C12: HARDWARE
C13: I alt
C14: Afbetaling
C15: I alt
C16: ='3 Business'!B136 -> Hardware pulje
C17: TOTAL HARDWARE PULJE | F17: ='3 Business'!B143 -> 0

Sheet Binding
A1: 24
A2: 36
